fUSD/lending_fUSD_20260509
["ID","MTS","AMOUNT","RATE_DAILY","PERIOD"]
[421899126,1778310633000,-214.73073128,0.00016103,2]
[421899124,1778310633000,-300.0,0.00016,2]
[421899125,1778310633000,-150.0,0.00016076,2]
[421899123,1778310633000,-2000.0,0.00015999,2]
[421899127,1778310633000,-150.0,0.00016123,2]
[421899128,1778310633000,-422.16487733,0.00016147,2]
[421899131,1778310633000,-289.45120955,0.00016237,2]
[421899177,1778310633000,-478.87,0.00016542,2]
[421899133,1778310633000,-500.0,0.00016246,2]
[421899129,1778310633000,-1998.71755344,0.00016147,2]
[421899132,1778310633000,-500.0,0.00016246,2]
[421899134,1778310633000,-500.0,0.00016246,2]
[421899135,1778310633000,-500.0,0.00016246,2]
[421899136,1778310633000,-500.0,0.00016246,2]
[421899140,1778310633000,-500.0,0.00016246,2]
[421899139,1778310633000,-500.0,0.00016246,2]
[421899138,1778310633000,-500.0,0.00016246,2]
[421899137,1778310633000,-500.0,0.00016246,2]
[421899143,1778310633000,-500.0,0.00016246,2]
[421899144,1778310633000,-500.0,0.00016246,2]
[421899142,1778310633000,-612.77448273,0.00016246,2]
[421899145,1778310633000,-500.0,0.00016246,2]
[421899141,1778310633000,-500.0,0.00016246,2]
[421899149,1778310633000,-150.0,0.00016281,2]
[421899148,1778310633000,-596.94249052,0.00016247,2]
[421899172,1778310633000,-500.0,0.00016399,2]
[421899168,1778310633000,-500.0,0.00016399,2]
[421899175,1778310633000,-481.08,0.00016542,2]
[421899210,1778310633000,-639.56,0.00017364,2]
[421899207,1778310633000,-478.87,0.00017364,2]
[421899213,1778310633000,-478.87,0.00017364,2]
[421899215,1778310633000,-478.87,0.00017364,2]
[421899212,1778310633000,-183.75,0.00017364,2]
[421899214,1778310633000,-639.56,0.00017364,2]
[421899211,1778310633000,-639.56,0.00017364,2]
[421899216,1778310633000,-478.85,0.00017364,2]
[421899228,1778310633000,-639.56,0.00017364,2]
[421899218,1778310633000,-478.87,0.00017364,2]
[421899217,1778310633000,-183.75,0.00017364,2]
[421899220,1778310633000,-478.87,0.00017364,2]
[421899221,1778310633000,-393.39,0.00017364,2]
[421899223,1778310633000,-478.87,0.00017364,2]
[421899224,1778310633000,-183.75,0.00017364,2]
[421899225,1778310633000,-393.42,0.00017364,2]
[421899227,1778310633000,-478.87,0.00017364,2]
[421899226,1778310633000,-639.62,0.00017364,2]
[421899222,1778310633000,-393.39,0.00017364,2]
[421899229,1778310633000,-478.87,0.00017364,2]
[421899231,1778310633000,-393.39,0.00017364,2]
[421899230,1778310633000,-183.75,0.00017364,2]
[421899233,1778310633000,-183.75,0.00017364,2]
[421899232,1778310633000,-478.88,0.00017364,2]
[421899176,1778310633000,-639.56,0.00016542,2]
[421899209,1778310633000,-478.87,0.00017364,2]
[421899208,1778310633000,-639.56,0.00017364,2]
[421899219,1778310633000,-639.56,0.00017364,2]
[421899205,1778310633000,-183.75,0.00017364,2]
[421899180,1778310633000,-183.61,0.00016545,2]
[421899206,1778310633000,-639.56,0.00017364,2]
[421899182,1778310633000,-477.26,0.00016545,2]
[421899192,1778310633000,-295.0,0.00017281,5]
[421899183,1778310633000,-639.56,0.00016545,2]
[421899181,1778310633000,-639.56,0.00016545,2]
[421899185,1778310633000,-6871.89706235,0.00016581,2]
[421899184,1778310633000,-4162.22712542,0.00016581,2]
[421899189,1778310633000,-587.0,0.00016763,2]
[421899187,1778310633000,-6047.0,0.00016672,2]
[421899190,1778310633000,-5625.87483973,0.00016793,2]
[421899188,1778310633000,-1007.82,0.00016679,2]
[421899191,1778310633000,-1007.82,0.00017067,2]
[421899186,1778310633000,-1222.0,0.00016672,2]
[421899201,1778310633000,-185.0,0.00017364,2]
[421899202,1778310633000,-494.55,0.00017364,2]
[421899193,1778310633000,-638.56,0.00017364,2]
[421899204,1778310633000,-639.56,0.00017364,2]
[421899200,1778310633000,-393.39,0.00017364,2]
[421899194,1778310633000,-639.56,0.00017364,2]
[421899203,1778310633000,-478.87,0.00017364,2]
[421899197,1778310633000,-481.16,0.00017364,2]
[421899199,1778310633000,-478.87,0.00017364,2]
[421899196,1778310633000,-393.39,0.00017364,2]
[421899195,1778310633000,-183.75,0.00017364,2]
[421899198,1778310633000,-183.75,0.00017364,2]
[421899268,1778310634000,-376.257326,0.00017823,7]
[421899273,1778310634000,-151.0,0.00017964,2]
[421899271,1778310634000,-2759.179537,0.00017823,7]
[421899269,1778310634000,-160.0,0.00017823,7]
[421899265,1778310634000,-500.0,0.00017608,2]
[421899275,1778310634000,-158.04,0.00017981,2]
[421899267,1778310634000,-2000.0,0.00017777,2]
[421899276,1778310634000,-164.93921462,0.00018,2]
[421899266,1778310634000,-500.0,0.00017608,2]
[421899272,1778310634000,-500.0,0.00017836,2]
[421899274,1778310634000,-151.0,0.00017964,2]
[421899270,1778310634000,-1459.589768,0.00017823,7]
[421899285,1778310634000,-569.23,0.00018186,2]
[421899279,1778310634000,-256.49,0.00018072,2]
[421899281,1778310634000,-393.12,0.00018186,2]
[421899288,1778310634000,-183.75,0.00018186,2]
[421899289,1778310634000,-393.39,0.00018186,2]
[421899287,1778310634000,-393.39,0.00018186,2]
[421899278,1778310634000,-350.0,0.00018,2]
[421899280,1778310634000,-810.92400818,0.000181,2]
[421899286,1778310634000,-571.48,0.00018186,2]
[421899284,1778310634000,-393.39,0.00018186,2]
[421899282,1778310634000,-393.39,0.00018186,2]
[421899283,1778310634000,-183.75,0.00018186,2]
[421899264,1778310634000,-500.0,0.00017608,2]
[421899277,1778310634000,-195.84417735,0.00018,2]
[421899258,1778310634000,-393.39,0.00017367,2]
[421899239,1778310634000,-571.48,0.00017364,2]
[421899254,1778310634000,-639.56,0.00017367,2]
[421899235,1778310634000,-393.39,0.00017364,2]
[421899234,1778310634000,-183.75,0.00017364,2]
[421899237,1778310634000,-571.48,0.00017364,2]
[421899236,1778310634000,-478.87,0.00017364,2]
[421899238,1778310634000,-393.39,0.00017364,2]
[421899240,1778310634000,-183.75,0.00017364,2]
[421899252,1778310634000,-183.75,0.00017367,2]
[421899242,1778310634000,-183.75,0.00017364,2]
[421899241,1778310634000,-393.39,0.00017364,2]
[421899249,1778310634000,-478.87,0.00017367,2]
[421899250,1778310634000,-478.87,0.00017367,2]
[421899244,1778310634000,-478.87,0.00017364,2]
[421899263,1778310634000,-500.0,0.00017608,2]
[421899248,1778310634000,-639.56,0.00017367,2]
[421899243,1778310634000,-183.75,0.00017364,2]
[421899245,1778310634000,-183.77,0.00017364,2]
[421899246,1778310634000,-478.87,0.00017364,2]
[421899251,1778310634000,-478.87,0.00017367,2]
[421899253,1778310634000,-478.87,0.00017367,2]
[421899255,1778310634000,-639.56,0.00017367,2]
[421899259,1778310634000,-639.56,0.00017367,2]
[421899256,1778310634000,-183.75,0.00017367,2]
[421899257,1778310634000,-639.56,0.00017367,2]
[421899261,1778310634000,-14007.5536705,0.00017599,2]
[421899262,1778310634000,-2912.2580847,0.00017599,2]
[421899260,1778310634000,-639.56,0.00017367,2]
[421899247,1778310634000,-639.56,0.00017367,2]
[421899291,1778310634000,-478.87,0.00018186,2]
[421899290,1778310634000,-183.75,0.00018186,2]
[421899293,1778310634000,-174.78,0.00018186,2]
[421899328,1778310634000,-393.39,0.00018186,2]
[421899332,1778310634000,-393.39,0.00018186,2]
[421899327,1778310634000,-393.39,0.00018186,2]
[421899331,1778310634000,-183.75,0.00018186,2]
[421899324,1778310634000,-183.75,0.00018186,2]
[421899334,1778310634000,-571.48,0.00018186,2]
[421899330,1778310634000,-569.23,0.00018186,2]
[421899325,1778310634000,-183.75,0.00018186,2]
[421899329,1778310634000,-393.39,0.00018186,2]
[421899333,1778310634000,-569.23,0.00018186,2]
[421899335,1778310634000,-478.87,0.00018186,2]
[421899336,1778310634000,-183.75,0.00018186,2]
[421899323,1778310634000,-393.39,0.00018186,2]
[421899345,1778310634000,-183.75,0.00018186,2]
[421899344,1778310634000,-501.56,0.00018186,2]
[421899337,1778310634000,-393.39,0.00018186,2]
[421899338,1778310634000,-393.39,0.00018186,2]
[421899339,1778310634000,-571.48,0.00018186,2]
[421899341,1778310634000,-571.48,0.00018186,2]
[421899340,1778310634000,-478.87,0.00018186,2]
[421899342,1778310634000,-478.87,0.00018186,2]
[421899343,1778310634000,-569.23,0.00018186,2]
[421899348,1778310634000,-393.39,0.00018186,2]
[421899347,1778310634000,-478.87,0.00018186,2]
[421899349,1778310634000,-183.75,0.00018186,2]
[421899350,1778310634000,-183.75,0.00018186,2]
[421899346,1778310634000,-198.65,0.00018186,2]
[421899326,1778310634000,-571.48,0.00018186,2]
[421899292,1778310634000,-393.39,0.00018186,2]
[421899319,1778310634000,-183.75,0.00018186,2]
[421899321,1778310634000,-478.9,0.00018186,2]
[421899294,1778310634000,-393.39,0.00018186,2]
[421899295,1778310634000,-571.27,0.00018186,2]
[421899296,1778310634000,-393.39,0.00018186,2]
[421899297,1778310634000,-393.39,0.00018186,2]
[421899300,1778310634000,-183.75,0.00018186,2]
[421899310,1778310634000,-569.23,0.00018186,2]
[421899302,1778310634000,-388.77,0.00018186,2]
[421899301,1778310634000,-571.48,0.00018186,2]
[421899299,1778310634000,-478.87,0.00018186,2]
[421899303,1778310634000,-467.16,0.00018186,2]
[421899305,1778310634000,-569.23,0.00018186,2]
[421899304,1778310634000,-183.75,0.00018186,2]
[421899298,1778310634000,-569.23,0.00018186,2]
[421899306,1778310634000,-393.39,0.00018186,2]
[421899307,1778310634000,-183.75,0.00018186,2]
[421899318,1778310634000,-571.48,0.00018186,2]
[421899320,1778310634000,-478.87,0.00018186,2]
[421899322,1778310634000,-393.39,0.00018186,2]
[421899316,1778310634000,-571.48,0.00018186,2]
[421899312,1778310634000,-568.35,0.00018186,2]
[421899317,1778310634000,-569.23,0.00018186,2]
[421899314,1778310634000,-183.75,0.00018186,2]
[421899313,1778310634000,-183.75,0.00018186,2]
[421899311,1778310634000,-478.87,0.00018186,2]
[421899309,1778310634000,-639.56,0.00018186,2]
[421899308,1778310634000,-571.48,0.00018186,2]
[421899315,1778310634000,-478.87,0.00018186,2]
[421899374,1778310635000,-571.39,0.00018189,2]
[421899380,1778310635000,-183.75,0.00018189,2]
[421899377,1778310635000,-478.87,0.00018189,2]
[421899373,1778310635000,-478.87,0.00018189,2]
[421899378,1778310635000,-571.48,0.00018189,2]
[421899381,1778310635000,-478.87,0.00018189,2]
[421899382,1778310635000,-393.39,0.00018189,2]
[421899379,1778310635000,-569.23,0.00018189,2]
[421899384,1778310635000,-183.75,0.00018189,2]
[421899387,1778310635000,-184.61,0.00018189,2]
[421899383,1778310635000,-183.75,0.00018189,2]
[421899385,1778310635000,-393.39,0.00018189,2]
[421899393,1778310635000,-164.93921462,0.000182,2]
[421899389,1778310635000,-478.87,0.00018189,2]
[421899388,1778310635000,-571.48,0.00018189,2]
[421899386,1778310635000,-393.39,0.00018189,2]
[421899391,1778310635000,-569.23,0.00018189,2]
[421899376,1778310635000,-393.39,0.00018189,2]
[421899394,1778310635000,-195.84417735,0.000182,2]
[421899375,1778310635000,-183.75,0.00018189,2]
[421899357,1778310635000,-569.23,0.00018186,2]
[421899371,1778310635000,-571.48,0.00018189,2]
[421899358,1778310635000,-571.48,0.00018186,2]
[421899351,1778310635000,-393.39,0.00018186,2]
[421899355,1778310635000,-393.39,0.00018186,2]
[421899352,1778310635000,-571.48,0.00018186,2]
[421899353,1778310635000,-569.23,0.00018186,2]
[421899356,1778310635000,-393.39,0.00018186,2]
[421899392,1778310635000,-571.48,0.0001819,2]
[421899359,1778310635000,-571.48,0.00018186,2]
[421899363,1778310635000,-393.39,0.00018189,2]
[421899361,1778310635000,-393.39,0.00018189,2]
[421899362,1778310635000,-639.56,0.00018189,2]
[421899360,1778310635000,-183.75,0.00018189,2]
[421899364,1778310635000,-183.75,0.00018189,2]
[421899366,1778310635000,-393.39,0.00018189,2]
[421899365,1778310635000,-571.48,0.00018189,2]
[421899367,1778310635000,-183.75,0.00018189,2]
[421899370,1778310635000,-183.75,0.00018189,2]
[421899369,1778310635000,-183.75,0.00018189,2]
[421899368,1778310635000,-478.87,0.00018189,2]
[421899372,1778310635000,-478.87,0.00018189,2]
[421899390,1778310635000,-393.39,0.00018189,2]
[421899354,1778310635000,-571.48,0.00018186,2]
[421899404,1778310635000,-151.0,0.00018563,5]
[421899416,1778310635000,-569.23,0.00019008,2]
[421899421,1778310635000,-571.48,0.00019008,2]
[421899423,1778310635000,-569.23,0.00019008,2]
[421899422,1778310635000,-571.48,0.00019008,2]
[421899429,1778310635000,-569.23,0.00019008,2]
[421899430,1778310635000,-569.23,0.00019008,2]
[421899425,1778310635000,-569.23,0.00019008,2]
[421899424,1778310635000,-571.48,0.00019008,2]
[421899426,1778310635000,-569.23,0.00019008,2]
[421899428,1778310635000,-571.48,0.00019008,2]
[421899432,1778310635000,-71.33044715,0.00019008,2]
[421899427,1778310635000,-571.48,0.00019008,2]
[421899431,1778310635000,-497.89955285,0.00019008,2]
[421899434,1778310635000,-255.1844644,0.00019008,2]
[421899438,1778310635000,-59.39867702,0.00019008,2]
[421899433,1778310635000,-314.0455356,0.00019008,2]
[421899437,1778310635000,-498.17526298,0.00019008,2]
[421899436,1778310635000,-71.05473702,0.00019008,2]
[421899395,1778310635000,-4162.22712542,0.00018262,2]
[421899415,1778310635000,-575.43,0.00019008,2]
[421899413,1778310635000,-1575.54752505,0.00018714,7]
[421899435,1778310635000,-393.39,0.00019008,2]
[421899412,1778310635000,-414.80215895,0.00018714,7]
[421899414,1778310635000,-569.23,0.00019008,2]
[421899403,1778310635000,-150.99,0.00018533,2]
[421899408,1778310635000,-155.0,0.00018648,5]
[421899401,1778310635000,-760.8,0.0001841,2]
[421899402,1778310635000,-195.84417735,0.000185,2]
[421899396,1778310635000,-6871.89706235,0.00018262,2]
[421899398,1778310635000,-500.0,0.00018384,2]
[421899399,1778310635000,-164.93921462,0.000184,2]
[421899405,1778310635000,-752.0,0.00018598,2]
[421899397,1778310635000,-823.0,0.00018366,2]
[421899406,1778310635000,-792.0,0.00018598,2]
[421899407,1778310635000,-170.82,0.00018645,2]
[421899418,1778310635000,-571.48,0.00019008,2]
[421899411,1778310635000,-171.026057,0.00018714,7]
[421899420,1778310635000,-396.34,0.00019008,2]
[421899409,1778310635000,-1582.0,0.00018669,2]
[421899410,1778310635000,-195.84417735,0.000187,2]
[421899400,1778310635000,-195.84417735,0.000184,2]
[421899419,1778310635000,-569.23,0.00019008,2]
[421899417,1778310635000,-569.23,0.00019008,2]
[421899460,1778310638000,-569.23,0.00019008,2]
[421899462,1778310638000,-183.75,0.00019008,2]
[421899469,1778310638000,-569.23,0.00019008,2]
[421899470,1778310638000,-183.75,0.00019008,2]
[421899467,1778310638000,-569.23,0.00019008,2]
[421899465,1778310638000,-569.23,0.00019008,2]
[421899466,1778310638000,-569.23,0.00019008,2]
[421899474,1778310638000,-571.48,0.00019008,2]
[421899468,1778310638000,-183.75,0.00019008,2]
[421899472,1778310638000,-393.39,0.00019008,2]
[421899473,1778310638000,-569.23,0.00019008,2]
[421899482,1778310638000,-569.23,0.00019008,2]
[421899478,1778310638000,-571.48,0.00019008,2]
[421899461,1778310638000,-393.39,0.00019008,2]
[421899471,1778310638000,-571.48,0.00019008,2]
[421899464,1778310638000,-569.23,0.00019008,2]
[421899463,1778310638000,-571.49,0.00019008,2]
[421899449,1778310638000,-183.75,0.00019008,2]
[421899457,1778310638000,-478.62,0.00019008,2]
[421899475,1778310638000,-569.23,0.00019008,2]
[421899443,1778310638000,-151.0,0.00019008,2]
[421899444,1778310638000,-281.32855643,0.00019008,2]
[421899442,1778310638000,-182.88691782,0.00019008,2]
[421899446,1778310638000,-183.75,0.00019008,2]
[421899448,1778310638000,-571.48,0.00019008,2]
[421899447,1778310638000,-393.39,0.00019008,2]
[421899459,1778310638000,-393.39,0.00019008,2]
[421899445,1778310638000,-52.66276655,0.00019008,2]
[421899451,1778310638000,-569.23,0.00019008,2]
[421899453,1778310638000,-410.07431866,0.00019008,2]
[421899454,1778310638000,-393.39,0.00019008,2]
[421899458,1778310638000,-393.0,0.00019008,2]
[421899455,1778310638000,-393.39,0.00019008,2]
[421899452,1778310638000,-161.40568134,0.00019008,2]
[421899456,1778310638000,-183.75,0.00019008,2]
[421899450,1778310638000,-183.75,0.00019008,2]
[421899479,1778310638000,-569.23,0.00019008,2]
[421899486,1778310638000,-571.48,0.00019011,2]
[421899481,1778310638000,-573.67,0.00019008,2]
[421899499,1778310638000,-183.77,0.00019011,2]
[421899504,1778310638000,-569.23,0.00019011,2]
[421899503,1778310638000,-569.23,0.00019011,2]
[421899506,1778310638000,-571.48,0.00019011,2]
[421899516,1778310638000,-1222.0,0.00019672,2]
[421899517,1778310638000,-1026.41144453,0.00019672,2]
[421899509,1778310638000,-164.0,0.0001933,2]
[421899501,1778310638000,-571.95,0.00019011,2]
[421899515,1778310638000,-2000.0,0.00019554,2]
[421899514,1778310638000,-329.07803929,0.00019376,13]
[421899510,1778310638000,-624.0,0.00019372,2]
[421899507,1778310638000,-571.48,0.00019012,2]
[421899477,1778310638000,-569.23,0.00019008,2]
[421899511,1778310638000,-1352.0,0.00019372,2]
[421899512,1778310638000,-3539.0,0.00019372,2]
[421899513,1778310638000,-1218.778,0.00019372,2]
[421899505,1778310638000,-569.23,0.00019011,2]
[421899498,1778310638000,-478.87,0.00019011,2]
[421899508,1778310638000,-1601.0,0.00019309,2]
[421899500,1778310638000,-569.23,0.00019011,2]
[421899502,1778310638000,-393.39,0.00019011,2]
[421899476,1778310638000,-571.48,0.00019008,2]
[421899483,1778310638000,-183.75,0.00019008,2]
[421899484,1778310638000,-569.23,0.00019008,2]
[421899485,1778310638000,-567.84,0.00019011,2]
[421899487,1778310638000,-571.48,0.00019011,2]
[421899490,1778310638000,-45.51786761,0.00019011,2]
[421899491,1778310638000,-285.45971994,0.00019011,2]
[421899480,1778310638000,-571.48,0.00019008,2]
[421899488,1778310638000,-569.23,0.00019011,2]
[421899492,1778310638000,-107.93028006,0.00019011,2]
[421899497,1778310638000,-571.48,0.00019011,2]
[421899495,1778310638000,-183.75,0.00019011,2]
[421899496,1778310638000,-571.48,0.00019011,2]
[421899494,1778310638000,-393.39,0.00019011,2]
[421899489,1778310638000,-138.25213239,0.00019011,2]
[421899493,1778310638000,-569.23,0.00019011,2]
[421899518,1778310639000,-380.52932165,0.00019672,2]
[421899541,1778310640000,-183.75,0.0001983,2]
[421899562,1778310640000,-393.39,0.0001983,2]
[421899543,1778310640000,-40.74275233,0.0001983,2]
[421899547,1778310640000,-571.48,0.0001983,2]
[421899546,1778310640000,-358.96724767,0.0001983,2]
[421899540,1778310640000,-393.39,0.0001983,2]
[421899545,1778310640000,-212.51275233,0.0001983,2]
[421899548,1778310640000,-300.40072183,0.0001983,2]
[421899549,1778310640000,-268.82927817,0.0001983,2]
[421899551,1778310640000,-393.39,0.0001983,2]
[421899542,1778310640000,-571.48,0.0001983,2]
[421899544,1778310640000,-528.48724767,0.0001983,2]
[421899539,1778310640000,-573.27,0.0001983,2]
[421899528,1778310640000,-571.48,0.0001983,2]
[421899536,1778310640000,-571.4,0.0001983,2]
[421899538,1778310640000,-569.23,0.0001983,2]
[421899537,1778310640000,-571.56,0.0001983,2]
[421899532,1778310640000,-584.99,0.0001983,2]
[421899534,1778310640000,-571.49,0.0001983,2]
[421899530,1778310640000,-571.48,0.0001983,2]
[421899533,1778310640000,-569.23,0.0001983,2]
[421899531,1778310640000,-571.48,0.0001983,2]
[421899529,1778310640000,-569.23,0.0001983,2]
[421899527,1778310640000,-569.23,0.0001983,2]
[421899526,1778310640000,-569.23,0.0001983,2]
[421899524,1778310640000,-151.0,0.00019011,2]
[421899525,1778310640000,-4640.05923382,0.00019672,2]
[421899535,1778310640000,-571.48,0.0001983,2]
[421899561,1778310640000,-569.23,0.0001983,2]
[421899564,1778310640000,-569.19,0.00019833,2]
[421899553,1778310640000,-571.48,0.0001983,2]
[421899578,1778310640000,-569.23,0.00019833,2]
[421899579,1778310640000,-571.48,0.00019833,2]
[421899581,1778310640000,-6871.89706235,0.00019943,2]
[421899583,1778310640000,-2632.1984958,0.0002,2]
[421899580,1778310640000,-4162.22712542,0.00019943,2]
[421899582,1778310640000,-500.0,0.00019999,2]
[421899576,1778310640000,-571.48,0.00019833,2]
[421899577,1778310640000,-569.23,0.00019833,2]
[421899573,1778310640000,-571.48,0.00019833,2]
[421899571,1778310640000,-393.39,0.00019833,2]
[421899572,1778310640000,-393.39,0.00019833,2]
[421899567,1778310640000,-569.23,0.00019833,2]
[421899568,1778310640000,-571.48,0.00019833,2]
[421899575,1778310640000,-569.23,0.00019833,2]
[421899552,1778310640000,-569.23,0.0001983,2]
[421899565,1778310640000,-393.39,0.00019833,2]
[421899570,1778310640000,-183.75,0.00019833,2]
[421899554,1778310640000,-569.23,0.0001983,2]
[421899550,1778310640000,-571.48,0.0001983,2]
[421899556,1778310640000,-393.39,0.0001983,2]
[421899560,1778310640000,-571.48,0.0001983,2]
[421899557,1778310640000,-571.48,0.0001983,2]
[421899555,1778310640000,-569.23,0.0001983,2]
[421899559,1778310640000,-571.48,0.0001983,2]
[421899563,1778310640000,-569.23,0.00019833,2]
[421899574,1778310640000,-569.23,0.00019833,2]
[421899566,1778310640000,-569.23,0.00019833,2]
[421899569,1778310640000,-571.48,0.00019833,2]
[421899558,1778310640000,-569.23,0.0001983,2]
[421899584,1778310642000,689.62013441,0.000149,2]
[421899599,1778310645000,-253.0,0.0002,2]
[421899610,1778310645000,-571.48,0.00020652,2]
[421899601,1778310645000,-1099.58,0.0002,2]
[421899595,1778310645000,-209.0,0.0002,2]
[421899598,1778310645000,-1595.0,0.0002,2]
[421899600,1778310645000,-235.0,0.0002,2]
[421899591,1778310645000,-929.0,0.00019672,2]
[421899597,1778310645000,-256.0,0.0002,2]
[421899594,1778310645000,-1625.395103,0.0002,2]
[421899592,1778310645000,-2548.79733864,0.0002,2]
[421899593,1778310645000,-300.0,0.0002,2]
[421899590,1778310645000,-929.0,0.00016672,2]
[421899603,1778310645000,-1152.0,0.00020122,2]
[421899596,1778310645000,-159.0,0.0002,2]
[421899604,1778310645000,-760.8,0.00020381,2]
[421899608,1778310645000,-571.48,0.00020652,2]
[421899606,1778310645000,-596.94249049,0.00020516,2]
[421899620,1778310645000,-546.0,0.000209,30]
[421899616,1778310645000,-571.48,0.00020655,2]
[421899617,1778310645000,-570.19,0.00020655,2]
[421899618,1778310645000,-10000.0,0.0002075,2]
[421899621,1778310645000,-666.04560035,0.000209,30]
[421899605,1778310645000,-689.98789,0.00020496,7]
[421899615,1778310645000,-571.48,0.00020655,2]
[421899614,1778310645000,-571.48,0.00020655,2]
[421899613,1778310645000,-576.23,0.00020652,2]
[421899609,1778310645000,-569.23,0.00020652,2]
[421899607,1778310645000,-1590.0,0.00020622,2]
[421899602,1778310645000,-400.0,0.0002,2]
[421899611,1778310645000,-571.48,0.00020652,2]
[421899612,1778310645000,-571.48,0.00020652,2]
[421899619,1778310645000,-27081.79692755,0.000209,30]
[421899654,1778310646000,-3706.26904347,0.000209,30]
[421899661,1778310711000,500.0,0.00014999,2]
[421899663,1778310712000,500.0,0.00014999,2]
[421899662,1778310712000,500.0,0.00014999,2]
[421899672,1778310719000,5000.01,0.000149,2]
[421899671,1778310719000,3500.01,0.000149,2]
[421899670,1778310719000,10000.01,0.000149,2]
[421899669,1778310719000,10000.01,0.000149,2]
[421899668,1778310719000,10000.01,0.000149,2]
[421899667,1778310719000,10000.01,0.000149,2]
[421899666,1778310719000,10000.01,0.000149,2]
[421899665,1778310719000,10000.01,0.000149,2]
[421899664,1778310719000,10000.01,0.000149,2]
[421899673,1778310796000,992.887557,0.00024214,120]
[421899674,1778310831000,100228.14010178,0.00030137,120]
[421899675,1778310999000,363.467767,0.0002352,120]
[421899676,1778311015000,184.62,0.00025268,120]
[421899678,1778311035000,181.733883,0.0002254,120]
[421899679,1778311045000,178.50365554,0.00030136,120]
[421899682,1778311172000,150.0,0.00010834,2]
[421899684,1778311265000,-150.0,0.00012834,2]
[421899683,1778311265000,-150.0,0.00011834,2]
[421899685,1778311265000,-150.0,0.00013028,2]
[421899688,1778311265000,-1477.473217,0.00014125,2]
[421899686,1778311265000,-150.0,0.00013157,2]
[421899689,1778311265000,-208.0536425,0.00014125,2]
[421899687,1778311265000,-150.0,0.00013834,2]
[421899690,1778311293000,166.82,0.0001412,2]
[421899692,1778311615000,-56.90645836,0.00014322,2]
[421899691,1778311615000,-150.0,0.0001425,2]
[421899718,1778311832000,-391.82815878,0.00014898,2]
[421899714,1778311832000,-163.816,0.00014897,2]
[421899716,1778311832000,-500.0,0.00014898,2]
[421899717,1778311832000,-500.0,0.00014898,2]
[421899719,1778311832000,-500.0,0.00014898,2]
[421899721,1778311832000,-500.0,0.00014898,2]
[421899723,1778311832000,-500.0,0.00014898,2]
[421899725,1778311832000,-500.0,0.00014898,2]
[421899727,1778311832000,-500.0,0.00014898,2]
[421899715,1778311832000,-150.0,0.00014897,2]
[421899729,1778311832000,-500.0,0.00014898,2]
[421899731,1778311832000,-500.0,0.00014898,2]